bitfinex/quotes_ETHUSD_20220215
["timestamp","ask_amount","ask_price","bid_price","bid_amount"]
[1644952052018,0.00243237,3112.7,3112.4,8.82385467]
[1644952052220,2.57688261,3114.3,3112.6,5.0]
[1644952052221,0.60559842,3114.2,3112.6,5.0]
[1644952052423,0.60559842,3114.2,3112.8,0.23239811]
[1644952052625,0.80279,3114.1,3112.9,19.1252559]
[1644952052819,3.54307073,3114.6,3113.3,1.0]
[1644952052820,2.7282,3114.6,3113.3,1.0]
[1644952053017,3.5309151,3114.6,3113.6,0.8027]
[1644952053219,3.5309151,3114.6,3113.7,0.463]
[1644952053417,2.7282,3114.6,3113.7,0.463]
[1644952053619,0.8027,3114.4,3113.7,0.463]
[1644952053817,0.8027,3114.4,3114.1,1.12565061]
[1644952054467,1.1027,3114.4,3113.7,1.26577]
[1644952054868,1.9054988,3114.4,3113.7,1.26577]
[1644952055069,1.9054988,3114.4,3113.8,3.38025754]
[1644952055273,1.9054988,3114.4,3113.8,3.37921754]
[1644952055473,1.9054988,3114.4,3114.1,0.98608977]
[1644952055669,0.80563616,3114.3,3114.1,0.98608977]
[1644952055870,0.80452616,3114.3,3114.1,0.98608977]
[1644952056672,0.7934,3114.3,3114.1,0.98608977]
[1644952057372,0.7934,3114.3,3114.2,3.32437555]
[1644952057815,3.79387674,3114.7,3114.2,3.32437555]
[1644952058021,2.18857674,3114.7,3114.3,0.463]
[1644952058222,0.00089526,3114.4,3114.3,0.463]
[1644952058418,0.00089526,3114.4,3114.3,4.21820833]
[1644952058815,0.00089526,3114.4,3114.3,7.25806583]
[1644952059017,2.18857674,3115.5,3114.3,6.45552583]
[1644952059418,0.00284994,3114.5,3114.4,1.0]
[1644952059616,0.00284994,3114.5,3114.4,4.79817565]
[1644952060119,7.457e-05,3114.5,3114.4,5.79817565]
[1644952060317,1.60498,3115.4,3115.1,1.14854785]
[1644952061118,1.60501,3115.3,3115.1,1.14854785]
[1644952063079,1.60501,3115.3,3114.7,0.463]
[1644952063769,1.60501,3115.3,3114.8,3.3597125]
[1644952063973,0.80247,3115.3,3114.8,3.3597125]
[1644952064171,0.00284953,3115.2,3114.8,3.3597125]
[1644952064370,0.00284953,3115.2,3115.1,1.08257783]
[1644952064571,0.00284953,3115.2,3114.7,0.463]
[1644952064970,1.60498,3115.4,3114.7,3.95744796]
[1644952065222,0.00284956,3115.1,3114.7,3.95744796]
[1644952065423,1.60802956,3115.1,3114.7,3.95744796]
[1644952065626,1.60802956,3115.1,3114.8,1.01769627]
[1644952065823,1.60802956,3115.1,3114.7,0.463]
[1644952066226,1.60518,3115.1,3114.7,0.463]
[1644952066624,1.60802959,3115.1,3114.7,0.463]
[1644952066824,2.41066579,3115.1,3114.7,0.463]
[1644952067023,1.60802959,3115.1,3114.7,0.463]
[1644952067224,0.80258,3115.0,3114.8,1.05564396]
[1644952068428,0.80258,3115.0,3114.9,3.37028009]
[1644952068629,0.80258,3115.0,3114.8,1.05564396]
[1644952070467,0.80258,3115.0,3114.9,3.36426668]
[1644952070771,0.80258,3115.0,3114.8,1.05564396]
[1644952074713,0.80258,3115.0,3114.7,0.463]
[1644952075417,0.80258,3115.0,3114.7,3.8405]
[1644952076017,0.80258,3115.0,3114.8,1.18319323]
[1644952076217,0.8051627,3115.0,3114.8,1.18319323]
[1644952077069,0.80258,3115.0,3114.8,1.18319323]
[1644952077569,0.80258,3115.0,3114.8,4.56435932]
[1644952077970,0.80258,3115.0,3114.8,1.18319323]
[1644952078768,0.80258,3115.0,3114.8,4.50626897]
[1644952079170,0.3,3114.9,3114.8,4.50626897]
[1644952080316,0.3,3114.9,3114.7,0.463]
[1644952080517,0.3,3114.9,3114.7,1.47996473]
[1644952080720,0.3,3114.9,3114.7,4.86398775]
[1644952081317,0.3,3114.9,3114.7,1.47996473]
[1644952082518,0.3,3114.9,3114.7,4.81073924]
[1644952083319,0.3,3114.9,3114.7,1.47996473]
[1644952084171,0.3,3114.9,3114.7,4.79501613]
[1644952085572,0.3,3114.9,3114.7,1.47996473]
[1644952085773,0.6,3114.9,3114.4,1.0]
[1644952085976,0.66708488,3114.8,3114.4,1.0]
[1644952086177,2.27269998,3114.8,3113.7,1.0]
[1644952086374,1.40278,3114.9,3113.4,1.463]
[1644952086375,1.79308488,3114.7,3113.4,1.463]
[1644952086573,1.426,3114.7,3113.5,0.6834919]
[1644952086777,1.6056457,3114.6,3114.1,0.85633295]
[1644952086974,0.80282,3114.4,3114.1,0.85633295]
[1644952087575,1.6055821,3114.4,3114.1,0.85633295]
[1644952087819,0.3,3114.3,3113.5,4.4117122]
[1644952088021,0.66808,3114.2,3113.5,1.0]
[1644952088225,0.80286,3114.1,3113.6,0.68442955]
[1644952088421,1.10286,3114.1,3113.4,0.463]
[1644952088620,1.10286,3114.1,3113.5,0.68442885]
[1644952088824,0.802868,3113.9,3113.8,1.14158035]
[1644952089322,2.408678,3113.9,3113.4,1.0]
[1644952089522,2.708678,3113.9,3113.1,4.1469]
[1644952089723,2.708678,3113.9,3113.2,0.68504896]
[1644952090821,2.708678,3113.9,3113.5,1.0439598]
[1644952091022,0.80292,3113.8,3113.5,1.0439598]
[1644952091221,3.2118125,3113.8,3113.5,1.0439598]
[1644952093975,0.80295,3113.7,3113.5,1.0439598]
[1644952094370,0.80295,3113.7,3113.6,0.6858519]
[1644952095070,0.80295,3113.7,3113.5,1.0439598]
[1644952095322,0.80295,3113.7,3113.6,0.68702795]
[1644952095523,1.47395498,3113.7,3113.6,0.68702795]
[1644952096121,0.53491236,3114.3,3113.6,0.68702795]
[1644952096321,0.39972831,3114.3,3113.6,0.68702795]
[1644952096922,0.80287,3113.9,3113.6,0.68702795]
[1644952098123,1.6057759,3113.9,3113.6,0.68702795]
[1644952098324,1.60579,3113.8,3113.6,0.68702795]
[1644952098524,1.60579,3113.8,3113.5,1.8468398]
[1644952098525,3.5118446,3113.8,3113.1,1.0]
[1644952098729,3.5118446,3113.8,3113.0,1.0]
[1644952098730,0.3,3113.5,3113.0,1.0]
[1644952099007,0.3,3113.5,3112.8,1.00448568]
[1644952099209,0.3,3113.5,3112.8,0.00448568]
[1644952099807,0.8030864,3113.3,3112.8,0.00448568]
[1644952100007,0.8030864,3113.3,3113.1,1.09338556]
[1644952100207,0.14685961,3113.4,3113.1,1.09338556]
[1644952103223,1.6365029,3113.5,3113.1,1.09338556]
[1644952103417,1.6365029,3113.5,3113.2,0.80297]
[1644952104619,0.80309,3113.4,3113.2,0.80297]
[1644952106223,1.6365029,3113.5,3113.2,0.80297]
[1644952106224,0.8332229,3113.5,3113.2,0.80297]
[1644952106467,0.0303229,3113.5,3113.2,0.80297]
[1644952106875,0.0303229,3113.5,3112.8,0.00448568]
[1644952107271,0.8332229,3113.5,3112.8,0.00448568]
[1644952107471,1.9061147,3113.4,3112.7,0.09276603]
[1644952107669,1.9061147,3113.4,3112.7,0.09725171]
[1644952108170,1.9061147,3113.4,3113.3,1.06243043]
[1644952108369,2.7092147,3113.4,3113.3,1.06243043]
[1644952110416,2.4092147,3113.4,3113.3,1.06243043]
[1644952110917,1.60619,3113.4,3113.3,1.06243043]
[1644952111526,0.8334029,3113.5,3113.3,1.06243043]
[1644952113968,1.6363751,3113.5,3113.3,1.06243043]
[1644952115369,0.46249415,3113.5,3113.3,1.06243043]
[1644952116571,1.26557415,3113.5,3113.3,1.06243043]
[1644952116770,0.68477825,3113.4,3113.0,0.80302]
[1644952116971,1.48780555,3113.4,3113.1,0.67167818]
[1644952117170,1.1030273,3113.4,3113.1,0.67167818]
[1644952117718,0.3,3113.4,3113.1,0.67167818]
[1644952118320,0.8030193,3113.3,3113.1,0.67167818]
[1644952119122,1.10301,3113.4,3113.1,0.67167818]
[1644952119322,1.10301,3113.4,3113.1,1.47465818]
[1644952119522,1.10301,3113.4,3113.2,0.67167818]
[1644952119928,1.10301,3113.4,3113.3,0.67167818]
[1644952120122,6.1621,3114.2,3113.1,4.09513632]
[1644952120322,0.68518736,3114.1,3113.6,1.04162845]
[1644952120523,0.68518736,3114.1,3113.7,0.67167818]
[1644952121324,0.68518736,3114.0,3113.7,0.67167818]
[1644952121576,1.48796736,3113.9,3113.7,0.67167818]
[1644952121771,0.80278,3113.9,3113.7,0.67167818]
[1644952121974,0.80278,3113.9,3113.8,0.80279]
[1644952122176,1.48795532,3113.9,3113.8,1.47487594]
[1644952122372,1.48795532,3113.9,3113.8,0.80279]
[1644952122576,0.80949424,3113.7,3113.6,1.04162845]
[1644952122772,1.4950032,3113.7,3113.6,1.71372446]
[1644952123174,1.4950032,3113.7,3113.6,5.89147694]
[1644952123373,1.4950032,3113.7,3113.6,8.58227975]
[1644952123374,0.80949424,3113.7,3113.6,8.58227975]
[1644952123573,0.80949424,3113.7,3113.6,7.58227975]
[1644952123775,0.80949424,3113.7,3113.6,8.58227975]
[1644952123976,0.80949424,3113.7,3113.6,7.58227975]
[1644952124276,0.80949424,3113.7,3113.6,8.58227975]
[1644952124876,0.80949424,3113.7,3113.6,5.20735727]
[1644952124877,0.80856066,3113.7,3113.6,5.20735727]
[1644952125717,0.80856066,3113.7,3113.6,8.5451595]
[1644952126017,0.80856066,3113.7,3113.6,5.20735727]
[1644952126218,0.80856066,3113.7,3113.6,8.50974221]
[1644952128520,0.80856066,3113.7,3113.6,7.50974221]
[1644952129476,0.80856066,3113.7,3113.6,8.50974221]
[1644952129677,0.80856066,3113.7,3113.6,4.20735727]
[1644952130074,0.80856066,3113.7,3113.6,5.20735727]
[1644952130276,0.80856066,3113.7,3113.6,4.20735727]
[1644952131577,0.80856066,3113.7,3113.6,3.40452727]
[1644952131775,0.80856066,3113.7,3113.6,2.17672446]
[1644952133129,1.4972863,3113.7,3113.6,2.17672446]
[1644952135031,0.80856066,3113.7,3113.6,2.17672446]
[1644952135335,1.49726781,3113.7,3113.6,2.17672446]
[1644952135932,0.80856066,3113.7,3113.6,2.17672446]
[1644952136332,0.80856066,3113.7,3113.6,1.71372446]
[1644952136765,1.49719657,3113.7,3113.6,1.71372446]
[1644952139168,1.10856066,3113.7,3113.6,1.71372446]
[1644952139367,1.10856066,3113.7,3113.6,1.91449866]
[1644952139568,1.10856066,3113.7,3113.6,2.71372446]
[1644952140222,0.80856066,3113.7,3113.6,3.51658446]
[1644952140424,0.00400674,3114.5,3113.7,0.1854636]
[1644952140630,0.00400674,3114.5,3114.0,18.89]
[1644952140631,0.67337266,3114.4,3114.0,18.89]
[1644952140928,2.18886927,3114.6,3114.2,1.0]
[1644952140929,2.19287601,3114.6,3114.2,1.0]
[1644952141121,2.19287601,3114.6,3114.3,5.85774306]
[1644952141323,2.19287601,3114.6,3114.5,1.0]
[1644952141640,2.86213226,3114.6,3114.5,6.3763215]
[1644952141822,0.67326299,3114.6,3114.5,6.3763215]
[1644952142221,0.00258827,3114.7,3114.6,0.95894191]
[1644952142421,0.00258827,3114.7,3114.6,5.4705651]
[1644952142622,0.67595706,3114.9,3114.8,1.649e-05]
[1644952142823,0.67595706,3115.1,3114.8,1.26548649]
[1644952143022,0.00400674,3114.9,3114.8,4.60348958]
[1644952143224,0.00400674,3114.9,3114.8,5.28626314]
[1644952143423,0.67595706,3114.9,3114.8,5.28626314]
[1644952143624,0.67595706,3114.9,3114.8,1.94826005]
[1644952143822,0.67595706,3115.0,3114.8,1.94826005]
[1644952144071,0.6799638,3115.0,3114.9,1.48528356]
[1644952144975,0.6799638,3115.0,3114.9,5.08932057]
[1644952145175,0.00400674,3115.0,3114.9,5.08932057]
[1644952145372,0.00400674,3115.5,3114.9,6.08932057]
[1644952145573,0.68161379,3115.4,3115.1,0.80237]
[1644952145781,0.68161379,3115.4,3115.1,4.69375664]
[1644952145976,0.68161379,3115.4,3115.1,1.26534]
[1644952146175,0.68161379,3115.4,3115.1,2.26534]
[1644952146376,0.68161379,3115.4,3115.2,0.9021035]
[1644952146575,0.68161379,3115.4,3115.2,4.38752016]
[1644952146775,0.68161379,3115.4,3115.2,6.21242016]
[1644952146975,0.68161379,3115.4,3115.2,2.7270035]
[1644952147177,1.48406379,3115.4,3115.2,1.9246035]
[1644952147377,0.68161379,3115.3,3115.2,1.9246035]
[1644952147819,0.98161379,3115.3,3115.2,1.0225]
[1644952148020,0.98161379,3115.3,3115.1,0.463]
[1644952148222,0.68161379,3115.2,3115.1,0.463]
[1644952151026,0.68256522,3115.2,3115.1,0.463]
[1644952152070,1.48514522,3115.2,3114.8,1.649e-05]
[1644952152271,0.30400674,3115.1,3114.8,1.649e-05]
[1644952152569,0.98657196,3115.1,3114.8,1.649e-05]
[1644952152770,0.68256522,3115.0,3114.8,1.649e-05]
[1644952152970,0.00400674,3114.9,3114.8,1.649e-05]
[1644952153172,0.68657196,3114.9,3114.8,1.649e-05]
[1644952154171,0.98657196,3114.9,3114.8,1.649e-05]
[1644952157331,1.28657196,3114.9,3114.8,1.649e-05]
[1644952161670,1.89524421,3114.9,3114.8,1.649e-05]
[1644952162729,1.28657196,3114.9,3114.8,1.649e-05]
[1644952166483,0.80397673,3114.8,3114.6,0.8741702]
[1644952166676,0.98256522,3114.7,3114.6,0.8741702]
[1644952168074,0.68256522,3114.7,3114.6,0.8741702]
[1644952174674,0.68256522,3114.7,3114.6,0.56623607]
[1644952175874,0.68256522,3114.7,3114.6,1.24212163]
[1644952179524,0.68256522,3114.7,3114.6,0.56623607]
[1644952180123,0.8026774,3114.6,3114.1,1.0]
[1644952180322,1.48524522,3114.5,3114.2,0.67647328]
[1644952180524,0.68256522,3114.4,3114.2,0.67647328]
[1644952180722,0.68256522,3114.4,3114.2,1.47916328]
[1644952180923,0.68256522,3114.4,3114.3,0.67647328]
[1644952181124,0.3,3114.5,3114.3,1.80525179]
[1644952181322,0.3,3114.5,3114.4,0.67647328]
[1644952181575,0.98493263,3114.5,3114.4,0.67647328]
[1644952181774,0.68493263,3114.5,3114.4,0.67647328]
[1644952182376,2.29033263,3114.5,3114.4,0.67647328]
[1644952182576,0.0755575,3114.6,3114.5,2.45]
[1644952182778,0.00131813,3114.8,3114.5,2.45]
[1644952182779,0.00131813,3114.8,3114.5,5.23347328]
[1644952182976,0.00131813,3114.8,3114.6,1.26544]
[1644952183176,0.00131813,3114.8,3114.6,2.27926267]
[1644952183376,0.00131813,3114.8,3114.7,1.0]
[1644952183577,0.00131813,3114.8,3114.7,1.463]
[1644952183776,0.00131813,3114.8,3114.7,1.413]
[1644952183975,0.00131813,3114.8,3114.7,1.463]
[1644952184175,0.00131813,3114.8,3114.7,3.24469159]
[1644952184377,0.00131813,3114.8,3114.7,22.95781]
[1644952184679,0.00131813,3114.8,3114.7,23.86921633]
[1644952184875,0.00131813,3114.8,3114.7,24.883039]
[1644952185075,0.00131813,3114.8,3114.7,24.27163267]
[1644952185331,0.00131813,3114.8,3114.7,35.05963267]
[1644952185631,2.03766678,3115.9,3114.7,35.05963267]
[1644952185835,2.03766678,3116.1,3115.2,0.80219]
[1644952186029,2.03766678,3116.1,3114.9,3.01888449]
[1644952186030,2.03766678,3116.1,3115.6,1.0]
[1644952186431,2.03766678,3116.1,3115.6,2.60444]
[1644952186831,2.03766678,3116.1,3115.7,0.463]
[1644952187030,2.03766678,3116.1,3115.7,1.26522]
[1644952187235,0.60867225,3116.2,3115.7,1.26522]
[1644952187831,0.60867225,3116.2,3115.8,1.05967106]
[1644952188031,1.41088225,3116.2,3115.8,2.66408106]
[1644952188231,1.10221,3116.2,3115.8,2.66408106]
[1644952188631,1.10221,3116.2,3115.8,3.46631106]
[1644952188831,1.10221,3116.2,3115.9,0.80221]
[1644952189078,1.10478145,3116.2,3115.9,0.80221]
[1644952189685,1.10478145,3116.2,3115.7,0.463]
[1644952189887,1.10478145,3116.2,3115.5,1.80229]
[1644952189888,0.5,3116.0,3115.5,0.463]
[1644952190080,0.5,3116.0,3115.1,3.4812]
[1644952190280,0.90867225,3116.0,3115.1,0.463]
[1644952190483,0.90867225,3116.0,3115.0,1.0]
[1644952190683,0.8024908,3115.7,3115.0,1.0]
[1644952190981,0.80249,3115.6,3115.5,0.95343048]
[1644952191182,1.10249,3115.6,3115.5,0.95343048]
[1644952191780,0.80249,3115.6,3115.5,0.95343048]
[1644952192181,0.60867225,3115.9,3115.5,0.95343048]
[1644952192390,0.60867225,3115.9,3115.5,2.95343048]
[1644952192586,3.05743,3116.1,3115.5,1.95343048]
[1644952192820,0.0025839,3115.7,3115.5,1.95343048]
[1644952193025,0.0025839,3115.7,3115.5,2.75578048]
[1644952193223,0.0025839,3115.7,3115.5,1.95343048]
[1644952193621,0.80237,3115.8,3115.5,1.95343048]
[1644952194023,0.80495388,3115.8,3115.5,2.75577048]
[1644952194422,0.80495388,3115.8,3115.5,3.55808048]
[1644952194823,0.80237,3115.8,3115.5,2.75577048]
[1644952195225,0.80495303,3115.8,3115.5,2.75577048]
[1644952195727,1.10495303,3115.8,3115.5,2.75577048]
[1644952196125,1.10495303,3115.8,3115.6,1.0]
[1644952196126,0.3,3115.8,3115.6,1.0]
[1644952196327,0.30258303,3115.8,3115.6,1.0]
[1644952196575,0.00258303,3115.8,3115.6,1.0]
[1644952196773,0.00258303,3115.8,3115.7,0.80227]
[1644952197373,1.10227,3116.0,3115.7,0.80227]
[1644952197675,0.00258298,3115.9,3115.7,0.80227]
[1644952198273,0.80486298,3115.9,3115.7,0.80227]
[1644952198475,0.80486298,3115.9,3115.5,1.95343048]
[1644952198476,0.80228,3115.9,3115.5,1.95343048]
[1644952198673,0.80228,3115.9,3115.5,0.95343048]
[1644952199073,0.80228,3115.9,3115.5,1.95343048]
[1644952200073,0.80486306,3115.9,3115.5,1.95343048]
[1644952200625,0.80486306,3115.9,3115.5,2.75578048]
[1644952200824,0.80228,3115.9,3115.5,2.75578048]
[1644952201030,0.00398671,3115.8,3115.5,2.75578048]
[1644952201225,1.10630671,3115.8,3115.6,0.5]
[1644952201426,0.30398671,3115.8,3115.6,0.5]
[1644952201625,0.00398671,3115.8,3115.6,0.5]
[1644952201924,0.00398671,3115.8,3115.7,0.80228]
[1644952202524,0.00398671,3115.8,3115.5,2.75575048]
[1644952202525,0.00398671,3115.8,3115.6,0.5]
[1644952202725,0.65896909,3115.7,3115.6,0.5]
[1644952202929,0.65896909,3115.7,3115.6,0.8166617]
[1644952203126,0.00398671,3115.8,3115.6,2.5236757]
[1644952203427,4.8837387,3116.5,3115.6,2.5236757]
[1644952203428,2.18739082,3116.4,3115.8,18.89]
[1644952203627,7.28,3117.1,3116.0,0.17884945]
[1644952203826,0.64572024,3117.0,3116.4,0.80194]
[1644952204105,0.64572024,3117.0,3116.5,1.508939]
[1644952204306,0.25,3117.4,3116.8,2.60387]
[1644952204506,0.80096766,3117.2,3116.8,2.60387]
[1644952204705,0.80096766,3117.2,3116.9,0.463]
[1644952205005,2.10386,3117.6,3117.0,1.0]
[1644952205205,0.64569623,3117.5,3117.0,1.0]
[1644952205612,1.44758623,3117.5,3117.0,1.80191]
[1644952205907,0.5,3117.2,3117.0,1.0]
[1644952207105,0.5,3117.2,3117.0,1.80191]
[1644952207605,0.00258229,3117.3,3117.0,1.80195]
[1644952207828,0.5,3117.1,3117.0,1.80195]
[1644952208029,0.5,3117.1,3117.0,1.26495]
[1644952208236,0.5,3117.1,3117.0,2.06685]
[1644952208428,0.5,3117.1,3117.0,3.06685]
[1644952208828,0.5,3117.1,3117.0,4.06685]
[1644952209026,0.5,3117.1,3117.0,3.06685]
[1644952209228,0.5,3117.1,3117.0,4.06685]
[1644952210531,0.8019,3117.5,3117.0,4.06685]
[1644952210733,0.00258226,3117.2,3117.0,4.06685]
[1644952210931,0.00258226,3117.2,3117.1,1.80192]
[1644952211132,0.00258226,3117.2,3117.1,2.80192]
[1644952211331,0.00258226,3117.2,3117.1,3.26492]
[1644952211781,0.5,3117.3,3117.1,3.26492]
[1644952211983,0.50258221,3117.3,3117.1,3.35727353]
[1644952212181,0.50258221,3117.3,3117.2,1.0]
[1644952212383,0.50258221,3117.3,3117.2,1.463]
[1644952212985,0.5,3117.3,3117.2,1.463]
[1644952213387,0.5,3117.3,3117.2,0.463]
[1644952217629,0.5,3117.3,3116.9,1.0]
[1644952217827,0.80198,3117.2,3116.9,1.0]
[1644952218227,1.10198,3117.2,3116.9,1.0]
[1644952219091,1.10852904,3117.2,3117.1,0.88021308]
[1644952220086,1.10594678,3117.2,3117.1,0.88021308]
[1644952222825,1.60384,3117.6,3117.2,0.06962851]
[1644952223134,0.00258221,3117.3,3117.2,0.06962851]
[1644952223726,0.80193,3117.5,3117.2,0.06962851]
[1644952223929,0.00258215,3117.4,3117.2,0.06962851]
[1644952224926,0.5,3117.4,3117.2,0.06962851]
[1644952225326,0.80451213,3117.5,3117.2,0.06962851]
[1644952225926,0.802047,3117.4,3117.2,0.06962851]
[1644952228879,1.102047,3117.4,3117.2,0.06962851]
[1644952229279,1.904127,3117.4,3117.2,0.06962851]
[1644952229484,3.22870258,3117.3,3117.2,0.06962851]
[1644952229679,4.83858524,3117.3,3117.2,0.06962851]
[1644952230329,1.60999367,3117.3,3117.2,0.06962851]
[1644952230729,4.86029596,3117.3,3117.2,0.06962851]
[1644952231131,1.60999367,3117.3,3117.2,0.06962851]
[1644952231427,0.95388216,3117.3,3117.2,0.06962851]
[1644952231631,0.80445752,3117.4,3117.2,0.06962851]
[1644952231928,0.00241052,3117.4,3117.2,0.06962851]
[1644952232128,0.65423748,3117.4,3117.2,0.06962851]
[1644952233131,1.45625658,3117.4,3117.2,0.06962851]
[1644952233429,0.8020191,3117.4,3117.2,0.06962851]
[1644952233833,0.65439063,3117.3,3117.2,0.06962851]
[1644952235081,0.95439063,3117.3,3117.2,0.06962851]
[1644952238526,0.65439063,3117.3,3117.2,0.06962851]
[1644952240430,0.95439063,3117.3,3117.2,0.06962851]
[1644952241884,1.75647063,3117.3,3117.2,0.06962851]
[1644952243684,0.95439063,3117.3,3117.2,0.06962851]
[1644952245245,2.4066891,3117.0,3115.9,0.61230959]
[1644952245444,2.4066891,3117.0,3115.6,1.26819245]
[1644952245445,2.4066891,3117.0,3115.7,1.31474263]
[1644952245446,0.65439063,3116.9,3115.7,1.31474263]
[1644952245644,0.95833757,3116.9,3115.8,0.70243304]
[1644952245845,0.65439063,3116.8,3115.7,0.70243304]
[1644952246044,0.65439063,3116.8,3115.8,0.70243304]
[1644952246045,0.00394694,3116.7,3115.8,0.70243304]
[1644952246244,1.45666093,3116.6,3116.3,0.86931426]
[1644952246444,0.65439063,3116.5,3116.4,0.70243304]
[1644952257982,0.65439063,3116.5,3116.2,0.70243304]
[1644952258183,1.45661853,3116.5,3116.3,0.70243304]
[1644952258383,1.45661853,3116.5,3115.9,0.61230959]
[1644952258384,1.45670063,3116.4,3115.9,0.61230959]
[1644952258584,1.45670063,3116.4,3115.9,1.31428691]
[1644952258585,0.65439063,3116.3,3115.9,1.31428691]
[1644952258785,0.65439063,3116.3,3116.1,1.1343681]
[1644952258984,0.65439063,3116.3,3116.2,0.70197732]
[1644952259586,1.45672063,3116.3,3116.2,0.70197732]
[1644952261233,1.45672063,3116.3,3115.7,3.02401827]
[1644952261234,1.75672063,3116.3,3115.9,0.70197732]
[1644952261432,1.75672063,3116.3,3116.0,0.70197732]
[1644952261433,1.45674063,3116.2,3116.0,0.70197732]
[1644952261632,1.45674063,3116.2,3115.7,1.0]
[1644952261633,1.45684063,3116.1,3115.7,1.0]
[1644952261832,1.45684063,3116.1,3115.8,0.70171657]
[1644952261833,0.65439063,3116.0,3115.8,0.70171657]
[1644952262231,0.95439063,3116.0,3115.8,0.70171657]
[1644952262430,0.95439063,3116.0,3115.3,0.61230959]
[1644952262431,1.45688063,3115.9,3115.3,0.61230959]
[1644952262630,0.8024509,3115.7,3115.3,0.61230959]
[1644952262830,0.8024509,3115.7,3115.4,0.70174474]
[1644952263034,1.24905293,3115.8,3115.5,0.70174474]
[1644952263230,2.85390293,3115.8,3115.5,0.70174474]
[1644952263631,2.85390293,3115.8,3115.6,0.70174474]
[1644952263632,0.68901414,3115.7,3115.6,0.70174474]
[1644952263830,1.49146504,3115.7,3115.6,0.70174474]
[1644952264082,0.80483373,3115.7,3115.6,0.70174474]
[1644952264483,0.8024509,3115.7,3115.6,0.70174474]
[1644952265382,1.48849765,3115.7,3115.6,0.70174474]
[1644952265782,1.48848866,3115.7,3115.6,0.70174474]
[1644952266482,0.8024509,3115.7,3115.6,0.70174474]
[1644952272781,0.8024509,3115.7,3115.6,1.72491359]
[1644952272986,1.60491,3116.1,3115.6,1.72491359]
[1644952272987,0.04543394,3116.5,3115.6,1.72491359]
[1644952273187,5.1585,3116.6,3115.7,0.70174474]
[1644952273188,0.00238285,3115.8,3115.7,0.70174474]
[1644952273387,0.00238285,3115.8,3115.7,1.77705433]
[1644952273583,0.00238285,3115.8,3115.7,2.77705433]
[1644952273781,0.00238285,3115.8,3115.7,3.77705433]
[1644952273986,0.00238285,3115.8,3115.7,4.57926433]
[1644952274181,0.67843276,3116.5,3115.7,4.57926433]
[1644952274388,0.00238285,3115.9,3115.8,0.70174474]
[1644952274582,0.00238285,3115.9,3115.8,1.77705433]
[1644952274982,0.00238285,3115.9,3115.8,3.77705433]
[1644952275234,0.00238285,3115.9,3115.8,9.10109002]
[1644952275437,0.67844364,3116.6,3115.8,9.90317392]
[1644952275634,0.25394694,3117.0,3116.1,0.80212]
[1644952275832,0.67856344,3116.9,3116.4,1.0]
[1644952276033,0.67856344,3116.9,3116.5,0.70174474]
[1644952276231,0.67856344,3116.8,3116.6,0.70174474]
[1644952276437,0.80602694,3117.1,3116.7,0.70174474]
[1644952276630,0.80602694,3117.1,3116.8,0.70174474]
[1644952276631,0.67858262,3117.0,3116.8,0.70174474]
[1644952276833,0.00238285,3116.9,3116.7,1.17712713]
[1644952277030,0.00238285,3116.9,3116.8,0.68068493]
[1644952277231,0.68096547,3116.9,3116.8,0.68068493]
[1644952277430,1.48309547,3116.9,3116.6,0.68068493]
[1644952277635,0.67858262,3116.8,3116.7,0.68068493]
[1644952277932,0.97858262,3116.8,3116.7,0.68068493]
[1644952278131,0.97858262,3116.8,3116.4,0.68068493]
[1644952278434,1.48078262,3116.7,3116.5,0.68068493]
[1644952278636,0.67858262,3116.6,3116.1,0.8754708]
[1644952278986,1.27858262,3116.6,3116.2,0.68084374]
[1644952279188,0.67858262,3116.5,3116.2,0.68084374]
[1644952279389,1.60441,3116.4,3116.2,0.68084374]
[1644952279786,0.97915799,3116.3,3116.2,0.68084374]
[1644952282391,0.97915799,3116.3,3116.1,0.68084374]
[1644952282592,1.904644,3116.3,3116.2,0.68084374]
[1644952282832,2.58387661,3116.3,3116.2,0.68084374]
[1644952283033,1.904644,3116.3,3115.7,0.68084374]
[1644952283233,0.67942952,3116.2,3115.9,1.1946034]
[1644952283434,1.904644,3116.3,3116.0,0.68084374]
[1644952283435,1.24889004,3116.3,3116.0,0.68084374]
[1644952283636,2.61109966,3116.2,3115.8,0.68084374]
[1644952283839,0.70609091,3116.1,3115.9,0.68084374]
[1644952284035,0.70609091,3116.1,3116.0,0.68084374]
[1644952284435,1.50858091,3116.1,3116.0,0.68084374]
[1644952285438,3.31107091,3116.1,3116.0,0.68084374]
[1644952286242,2.50858091,3116.1,3116.0,0.68084374]
[1644952286509,1.50858091,3116.1,3116.0,1.65438047]
[1644952298034,1.50858091,3116.1,3116.0,0.68084374]
[1644952300838,0.70609091,3116.1,3116.0,0.68084374]
[1644952301887,0.70609091,3116.1,3116.0,1.48306374]
[1644952302285,0.70609091,3116.1,3116.0,0.68084374]
[1644952303087,0.80233,3116.2,3116.0,6.03595545]
[1644952303289,0.00275991,3116.2,3116.1,0.68084374]
[1644952303486,0.03121697,3116.3,3116.1,2.14384374]
[1644952303686,3.1383,3116.9,3116.2,1.48288714]
[1644952303885,3.1383,3116.9,3116.6,0.92427636]
[1644952303886,0.72126326,3116.8,3116.6,0.92427636]
[1644952304087,0.72126326,3116.8,3116.7,0.68084374]
[1644952304490,2.32541326,3116.8,3116.7,0.68084374]
[1644952304688,2.62541326,3116.8,3116.7,0.68084374]
[1644952305635,2.32541326,3116.8,3116.7,0.68084374]
[1644952306640,2.32541326,3116.8,3116.6,0.92427636]
[1644952306837,0.72126326,3116.7,3116.3,2.20966261]
[1644952307043,1.52348326,3116.7,3116.4,0.63997937]
[1644952307237,0.72126326,3116.6,3116.4,1.10297937]
[1644952307437,0.72126326,3116.6,3116.5,0.63997937]
[1644952308042,0.72126326,3116.6,3116.5,1.49328984]
[1644952311793,0.72126326,3116.6,3116.5,2.95628984]
[1644952315043,1.02126326,3116.6,3116.5,2.95628984]
[1644952316243,1.02126326,3116.6,3116.5,2.49328984]
[1644952318588,0.72126326,3116.6,3116.5,2.49328984]
[1644952323363,1.02126326,3116.6,3116.4,0.21997937]
[1644952323643,1.02126326,3116.6,3116.0,0.48563314]
[1644952323644,0.23704169,3116.2,3116.0,0.48563314]
[1644952323846,1.84186169,3116.2,3116.0,0.48563314]
[1644952324092,1.33948169,3116.2,3116.0,0.48563314]
[1644952324693,2.14190809,3116.2,3116.0,0.48563314]
[1644952324892,2.14190809,3116.2,3115.5,1.0]
[1644952324893,0.80235,3116.1,3115.5,1.0]